[Event "Titled Tuesday Blitz November 9 2021"]
[White "Aditya Mittal"]
[Black "Zierk, Steven"]
[WhiteFideId "35042025"]
[BlackFideId "2034255"]
[WhiteElo "2245"]
[BlackElo "2494"]
[Result "0-1"]
[Round "11"]
[TimeControl "180+1"]
[Date "2021.11.09"]
[WhiteClock "0:00:04"]
[BlackClock "0:00:10"]

1. d4 {[%clk 0:03:00]}  d5 {[%clk 0:02:59]} 2. c4 {[%clk 0:03:01]}  dxc4 {[%clk 0:03:00]} 3. Nf3 {[%clk 0:03:01]}  Nf6 {[%clk 0:02:59]} 4. e3 {[%clk 0:03:01]}  e6 {[%clk 0:03:00]} 5. Bxc4 {[%clk 0:03:02]}  c5 {[%clk 0:03:00]} 6. O-O {[%clk 0:03:02]}  Nc6 {[%clk 0:03:00]} 7. Nc3 {[%clk 0:03:01]}  a6 {[%clk 0:03:00]} 8. a4 {[%clk 0:02:59]}  Be7 {[%clk 0:02:57]} 9. Qe2 {[%clk 0:02:59]}  O-O {[%clk 0:02:57]} 10. Rd1 {[%clk 0:02:58]}  Qc7 {[%clk 0:02:54]} 11. d5 {[%clk 0:02:49]}  exd5 {[%clk 0:02:54]} 12. Nxd5 {[%clk 0:02:49]}  Nxd5 {[%clk 0:02:55]} 13. Bxd5 {[%clk 0:02:50]}  Bf6 {[%clk 0:02:51]} 14. h3 {[%clk 0:02:34]}  Nb4 {[%clk 0:02:40]} 15. e4 {[%clk 0:02:24]}  Nxd5 {[%clk 0:02:38]} 16. exd5 {[%clk 0:02:24]}  Bf5 {[%clk 0:02:31]} 17. d6 {[%clk 0:02:08]}  Qc6 {[%clk 0:02:13]} 18. Bf4 {[%clk 0:01:57]}  Rfe8 {[%clk 0:02:11]} 19. Qd2 {[%clk 0:01:55]}  Bxh3 {[%clk 0:01:41]} 20. d7 {[%clk 0:01:23]}  Red8 {[%clk 0:01:39]} 21. gxh3 {[%clk 0:01:24]}  Qxf3 {[%clk 0:01:39]} 22. Bc7 {[%clk 0:01:22]}  Bd4 {[%clk 0:01:38]} 23. Ra3 {[%clk 0:01:02]}  Bxf2+ {[%clk 0:01:17]} 24. Kh2 {[%clk 0:01:02]}  Qh5 {[%clk 0:00:47]} 25. Rf1 {[%clk 0:00:33]}  Bd4 {[%clk 0:00:39]} 26. Bxd8 {[%clk 0:00:32]}  Rxd8 {[%clk 0:00:37]} 27. Re1 {[%clk 0:00:31]}  Be5+ {[%clk 0:00:33]} 28. Kh1 {[%clk 0:00:31]}  f6 {[%clk 0:00:16]} 29. Rae3 {[%clk 0:00:29]}  Qf7 {[%clk 0:00:14]} 30. Rd3 {[%clk 0:00:18]}  Bd4 {[%clk 0:00:14]} 31. Qe2 {[%clk 0:00:17]}  Qxd7 {[%clk 0:00:12]} 32. Qe6+ {[%clk 0:00:17]}  Kf8 {[%clk 0:00:11]} 33. Qxd7 {[%clk 0:00:15]}  Rxd7 {[%clk 0:00:12]} 34. Re6 {[%clk 0:00:15]}  Rc7 {[%clk 0:00:09]} 35. Rb3 {[%clk 0:00:14]}  c4 {[%clk 0:00:08]} 36. Rb4 {[%clk 0:00:11]}  b6 {[%clk 0:00:07]} 37. Re4 {[%clk 0:00:08]}  a5 {[%clk 0:00:07]} 38. Rb5 {[%clk 0:00:07]}  Be5 {[%clk 0:00:07]} 39. Kg2 {[%clk 0:00:07]}  Rc6 {[%clk 0:00:05]} 40. Kf3 {[%clk 0:00:07]}  Kf7 {[%clk 0:00:05]} 41. Ke2 {[%clk 0:00:07]}  h5 {[%clk 0:00:05]} 42. Kd2 {[%clk 0:00:06]}  g5 {[%clk 0:00:05]} 43. Rd5 {[%clk 0:00:04]}  Bxb2 {[%clk 0:00:05]} 44. Kc2 {[%clk 0:00:04]}  Be5 {[%clk 0:00:04]} 45. Re3 {[%clk 0:00:04]}  Ke6 {[%clk 0:00:04]} 46. Rd1 {[%clk 0:00:04]}  Kf5 {[%clk 0:00:04]} 47. Rf1+ {[%clk 0:00:05]}  Bf4 {[%clk 0:00:05]} 48. Re8 {[%clk 0:00:04]}  Rc5 {[%clk 0:00:05]} 49. Kc3 {[%clk 0:00:05]}  b5 {[%clk 0:00:05]} 50. axb5 {[%clk 0:00:05]}  Rxb5 {[%clk 0:00:06]} 51. Kxc4 {[%clk 0:00:06]}  Rb4+ {[%clk 0:00:06]} 52. Kc5 {[%clk 0:00:06]}  g4 {[%clk 0:00:06]} 53. hxg4+ {[%clk 0:00:06]}  hxg4 {[%clk 0:00:07]} 54. Ra8 {[%clk 0:00:05]}  Ra4 {[%clk 0:00:07]} 55. Kb5 {[%clk 0:00:05]}  Ra2 {[%clk 0:00:07]} 56. Kc4 {[%clk 0:00:05]}  g3 {[%clk 0:00:07]} 57. Rg8 {[%clk 0:00:05]}  Rf2 {[%clk 0:00:07]} 58. Rg1 {[%clk 0:00:04]}  Be5 {[%clk 0:00:07]} 59. Kd3 {[%clk 0:00:02]}  a4 {[%clk 0:00:06]} 60. Ke3 {[%clk 0:00:02]}  a3 {[%clk 0:00:06]} 61. Ra8 {[%clk 0:00:03]}  a2 {[%clk 0:00:06]} 62. Ra5 {[%clk 0:00:02]}  Kg4 {[%clk 0:00:05]} 63. Rc1 {[%clk 0:00:01]}  Bf4+ {[%clk 0:00:05]} 64. Ke4 {[%clk 0:00:01]}  Bxc1 {[%clk 0:00:06]} 65. Ra3 {[%clk 0:00:01]}  f5+ {[%clk 0:00:06]} 66. Kd5 {[%clk 0:00:02]}  Bxa3 {[%clk 0:00:07]} 67. Ke6 {[%clk 0:00:03]}  a1=Q {[%clk 0:00:08]} 68. Kf7 {[%clk 0:00:03]}  Qd4 {[%clk 0:00:07]} 69. Kg6 {[%clk 0:00:04]}  Qd6+ {[%clk 0:00:08]} 70. Kh7 {[%clk 0:00:04]}  Rc2 {[%clk 0:00:08]} 71. Kg8 {[%clk 0:00:05]}  Rc8+ {[%clk 0:00:08]} 72. Kh7 {[%clk 0:00:06]}  Rc7+ {[%clk 0:00:09]} 73. Kg8 {[%clk 0:00:04]}  Qd8# {[%clk 0:00:10]} 0-1


[Site "https://www.chess.com"]

[Event "Titled Tuesday Blitz November 9 2021"]
[White "Grischuk, Alexander"]
[Black "Nakamura, Hikaru"]
[WhiteFideId "4126025"]
[BlackFideId "2016192"]
[WhiteElo "2757"]
[BlackElo "2884"]
[Result "1-0"]
[Round "11"]
[TimeControl "180+1"]
[Date "2021.11.09"]
[WhiteClock "0:00:19"]
[BlackClock "0:00:16"]

1. e4 {[%clk 0:03:00]}  e5 {[%clk 0:03:00]} 2. Nf3 {[%clk 0:03:00]}  Nc6 {[%clk 0:03:00]} 3. Bb5 {[%clk 0:03:01]}  Nf6 {[%clk 0:03:00]} 4. O-O {[%clk 0:03:00]}  Nxe4 {[%clk 0:03:00]} 5. d4 {[%clk 0:03:00]}  Nd6 {[%clk 0:03:01]} 6. Bxc6 {[%clk 0:03:01]}  dxc6 {[%clk 0:03:02]} 7. dxe5 {[%clk 0:03:01]}  Nf5 {[%clk 0:03:02]} 8. Qxd8+ {[%clk 0:03:02]}  Kxd8 {[%clk 0:03:03]} 9. Nc3 {[%clk 0:03:00]}  Bd7 {[%clk 0:03:04]} 10. h3 {[%clk 0:02:58]}  h6 {[%clk 0:03:03]} 11. b3 {[%clk 0:02:58]}  a5 {[%clk 0:03:01]} 12. a4 {[%clk 0:02:53]}  Be7 {[%clk 0:02:57]} 13. Bb2 {[%clk 0:02:49]}  b6 {[%clk 0:02:56]} 14. Rad1 {[%clk 0:02:48]}  Kc8 {[%clk 0:02:56]} 15. g4 {[%clk 0:02:31]}  Nh4 {[%clk 0:02:56]} 16. Nxh4 {[%clk 0:02:31]}  Bxh4 {[%clk 0:02:56]} 17. f4 {[%clk 0:02:31]}  h5 {[%clk 0:02:50]} 18. f5 {[%clk 0:02:29]}  hxg4 {[%clk 0:02:37]} 19. hxg4 {[%clk 0:02:30]}  Re8 {[%clk 0:02:20]} 20. Ne4 {[%clk 0:02:17]}  c5 {[%clk 0:02:17]} 21. Kg2 {[%clk 0:02:15]}  Bc6 {[%clk 0:02:17]} 22. Kf3 {[%clk 0:02:15]}  c4 {[%clk 0:02:06]} 23. Kf4 {[%clk 0:02:07]}  Kb7 {[%clk 0:01:49]} 24. Ng5 {[%clk 0:01:38]}  cxb3 {[%clk 0:01:45]} 25. cxb3 {[%clk 0:01:37]}  Bxg5+ {[%clk 0:01:15]} 26. Kxg5 {[%clk 0:01:38]}  Rad8 {[%clk 0:01:14]} 27. Rxd8 {[%clk 0:00:48]}  Rxd8 {[%clk 0:01:15]} 28. e6 {[%clk 0:00:48]}  fxe6 {[%clk 0:01:14]} 29. fxe6 {[%clk 0:00:49]}  Rd3 {[%clk 0:00:45]} 30. Bxg7 {[%clk 0:00:30]}  Rxb3 {[%clk 0:00:43]} 31. Be5 {[%clk 0:00:28]}  Re3 {[%clk 0:00:40]} 32. Kf6 {[%clk 0:00:28]}  Bxa4 {[%clk 0:00:37]} 33. g5 {[%clk 0:00:22]}  Be8 {[%clk 0:00:36]} 34. Rf5 {[%clk 0:00:21]}  Rh3 {[%clk 0:00:21]} 35. g6 {[%clk 0:00:20]}  Rh6 {[%clk 0:00:21]} 36. Rg5 {[%clk 0:00:20]}  a4 {[%clk 0:00:16]} 37. Kg7 {[%clk 0:00:20]}  Rh1 {[%clk 0:00:16]} 38. Kf8 {[%clk 0:00:19]} 1-0


[Site "https://www.chess.com"]

[Event "Titled Tuesday Blitz November 9 2021"]
[White "Hasangatin, Ramil"]
[Black "Kobalia, Mikhail"]
[WhiteFideId "4122160"]
[BlackFideId "4119150"]
[WhiteElo "2375"]
[BlackElo "2543"]
[Result "0-1"]
[Round "11"]
[TimeControl "180+1"]
[Date "2021.11.09"]
[WhiteClock "0:00:19"]
[BlackClock "0:00:15"]

1. e4 {[%clk 0:02:53]}  c5 {[%clk 0:02:59]} 2. Nf3 {[%clk 0:02:53]}  e6 {[%clk 0:02:59]} 3. g3 {[%clk 0:02:53]}  Nf6 {[%clk 0:02:57]} 4. d3 {[%clk 0:02:52]}  d5 {[%clk 0:02:56]} 5. Qe2 {[%clk 0:02:52]}  Be7 {[%clk 0:02:55]} 6. Bg2 {[%clk 0:02:52]}  Nc6 {[%clk 0:02:55]} 7. O-O {[%clk 0:02:53]}  O-O {[%clk 0:02:55]} 8. e5 {[%clk 0:02:53]}  Nd7 {[%clk 0:02:55]} 9. c4 {[%clk 0:02:53]}  Qc7 {[%clk 0:02:28]} 10. Re1 {[%clk 0:02:52]}  d4 {[%clk 0:02:07]} 11. Bf4 {[%clk 0:02:51]}  a6 {[%clk 0:02:07]} 12. h4 {[%clk 0:02:50]}  b5 {[%clk 0:02:06]} 13. Nbd2 {[%clk 0:02:51]}  Rb8 {[%clk 0:02:05]} 14. b3 {[%clk 0:02:50]}  Bb7 {[%clk 0:02:01]} 15. Ne4 {[%clk 0:02:50]}  bxc4 {[%clk 0:01:56]} 16. bxc4 {[%clk 0:02:50]}  Qa5 {[%clk 0:01:54]} 17. h5 {[%clk 0:02:46]}  h6 {[%clk 0:01:54]} 18. Nh2 {[%clk 0:02:31]}  Ncxe5 {[%clk 0:01:33]} 19. Nxc5 {[%clk 0:02:27]}  Qxc5 {[%clk 0:01:26]} 20. Bxe5 {[%clk 0:02:23]}  Nxe5 {[%clk 0:01:25]} 21. Qxe5 {[%clk 0:02:22]}  Bxg2 {[%clk 0:01:24]} 22. Qxc5 {[%clk 0:02:13]}  Bxc5 {[%clk 0:01:23]} 23. Kxg2 {[%clk 0:02:14]}  Rb2 {[%clk 0:01:23]} 24. Nf3 {[%clk 0:02:06]}  a5 {[%clk 0:01:21]} 25. Ne5 {[%clk 0:02:01]}  Rc8 {[%clk 0:01:16]} 26. Nd7 {[%clk 0:01:50]}  Bb4 {[%clk 0:01:11]} 27. Reb1 {[%clk 0:01:38]}  Rd2 {[%clk 0:01:09]} 28. Rd1 {[%clk 0:01:38]}  Rxd1 {[%clk 0:01:04]} 29. Rxd1 {[%clk 0:01:38]}  Rc7 {[%clk 0:01:01]} 30. Nb6 {[%clk 0:01:25]}  Rb7 {[%clk 0:01:00]} 31. Na4 {[%clk 0:01:24]}  Ba3 {[%clk 0:00:57]} 32. c5 {[%clk 0:01:18]}  Kf8 {[%clk 0:00:55]} 33. Rd2 {[%clk 0:00:55]}  Ke7 {[%clk 0:00:54]} 34. Rc2 {[%clk 0:00:51]}  Rb4 {[%clk 0:00:54]} 35. c6 {[%clk 0:00:41]}  Kd8 {[%clk 0:00:52]} 36. Nc5 {[%clk 0:00:36]}  Kc8 {[%clk 0:00:38]} 37. Nd7 {[%clk 0:00:24]}  Rb5 {[%clk 0:00:35]} 38. Rc4 {[%clk 0:00:21]}  e5 {[%clk 0:00:32]} 39. g4 {[%clk 0:00:20]}  Kc7 {[%clk 0:00:29]} 40. Kf3 {[%clk 0:00:20]}  f6 {[%clk 0:00:20]} 41. Ke4 {[%clk 0:00:20]}  Rb2 {[%clk 0:00:18]} 42. f4 {[%clk 0:00:20]}  exf4 {[%clk 0:00:17]} 43. Kxf4 {[%clk 0:00:20]}  Rxa2 {[%clk 0:00:16]} 44. Nf8 {[%clk 0:00:19]}  Bxf8 {[%clk 0:00:15]} 0-1


[Site "https://www.chess.com"]

[Event "Titled Tuesday Blitz November 9 2021"]
[White "Holt, Conrad"]
[Black "Piesik, Piotr"]
[WhiteFideId "2034387"]
[BlackFideId "1136194"]
[WhiteElo "2586"]
[BlackElo "2336"]
[Result "1-0"]
[Round "11"]
[TimeControl "180+1"]
[Date "2021.11.09"]
[WhiteClock "0:02:27"]
[BlackClock "0:02:15"]

1. d4 {[%clk 0:03:00]}  c5 {[%clk 0:02:59]} 2. d5 {[%clk 0:03:01]}  e5 {[%clk 0:02:58]} 3. c4 {[%clk 0:02:59]}  d6 {[%clk 0:02:58]} 4. e4 {[%clk 0:02:59]}  Be7 {[%clk 0:02:59]} 5. Nf3 {[%clk 0:02:59]}  Bg4 {[%clk 0:02:58]} 6. Nbd2 {[%clk 0:03:00]}  Bg5 {[%clk 0:02:56]} 7. Qa4+ {[%clk 0:02:59]}  Bd7 {[%clk 0:02:52]} 8. Qb3 {[%clk 0:02:59]}  Bxd2+ {[%clk 0:02:52]} 9. Nxd2 {[%clk 0:02:56]}  Na6 {[%clk 0:02:45]} 10. Be2 {[%clk 0:02:48]}  Nf6 {[%clk 0:02:42]} 11. O-O {[%clk 0:02:48]}  Qb6 {[%clk 0:02:38]} 12. Qg3 {[%clk 0:02:45]}  O-O {[%clk 0:02:36]} 13. b3 {[%clk 0:02:43]}  Qd8 {[%clk 0:02:29]} 14. Bb2 {[%clk 0:02:42]}  Qe7 {[%clk 0:02:26]} 15. f4 {[%clk 0:02:41]}  exf4 {[%clk 0:02:26]} 16. Rxf4 {[%clk 0:02:40]}  Ne8 {[%clk 0:02:24]} 17. Raf1 {[%clk 0:02:35]}  f6 {[%clk 0:02:24]} 18. Bh5 {[%clk 0:02:35]}  Kh8 {[%clk 0:02:21]} 19. Rh4 {[%clk 0:02:30]}  f5 {[%clk 0:02:15]} 20. Bg6 {[%clk 0:02:27]} 1-0


[Site "https://www.chess.com"]

[Event "Titled Tuesday Blitz November 9 2021"]
[White "Janaszak, Dawid"]
[Black "Gaehwiler, Gabriel"]
[WhiteFideId "1119206"]
[BlackFideId "1314530"]
[WhiteElo "2215"]
[BlackElo "2320"]
[Result "0-1"]
[Round "11"]
[TimeControl "180+1"]
[Date "2021.11.09"]
[WhiteClock "0:00:03"]
[BlackClock "0:00:17"]

1. e4 {[%clk 0:03:00]}  c5 {[%clk 0:02:59]} 2. Nc3 {[%clk 0:03:00]}  d6 {[%clk 0:02:58]} 3. f4 {[%clk 0:02:58]}  g6 {[%clk 0:02:58]} 4. Nf3 {[%clk 0:02:57]}  Bg7 {[%clk 0:02:59]} 5. Bc4 {[%clk 0:02:58]}  Nc6 {[%clk 0:02:58]} 6. O-O {[%clk 0:02:57]}  Nf6 {[%clk 0:02:58]} 7. d3 {[%clk 0:02:50]}  Na5 {[%clk 0:02:56]} 8. e5 {[%clk 0:02:41]}  dxe5 {[%clk 0:02:41]} 9. fxe5 {[%clk 0:02:38]}  Ng4 {[%clk 0:02:39]} 10. Bb5+ {[%clk 0:02:16]}  Bd7 {[%clk 0:02:05]} 11. Bf4 {[%clk 0:02:06]}  a6 {[%clk 0:01:53]} 12. Bxd7+ {[%clk 0:02:04]}  Qxd7 {[%clk 0:01:53]} 13. Qe1 {[%clk 0:01:46]}  Nc6 {[%clk 0:01:47]} 14. h3 {[%clk 0:01:35]}  Ngxe5 {[%clk 0:01:31]} 15. Nxe5 {[%clk 0:01:34]}  Qd4+ {[%clk 0:01:30]} 16. Kh1 {[%clk 0:01:00]}  Bxe5 {[%clk 0:01:21]} 17. Be3 {[%clk 0:00:58]}  Qd7 {[%clk 0:01:21]} 18. Bxc5 {[%clk 0:00:56]}  O-O {[%clk 0:01:21]} 19. Qh4 {[%clk 0:00:53]}  Bg7 {[%clk 0:01:20]} 20. Rae1 {[%clk 0:00:52]}  Rae8 {[%clk 0:01:12]} 21. Ne4 {[%clk 0:00:45]}  Qd5 {[%clk 0:00:56]} 22. Ba3 {[%clk 0:00:37]}  b5 {[%clk 0:00:48]} 23. b3 {[%clk 0:00:32]}  Qd4 {[%clk 0:00:35]} 24. Bc5 {[%clk 0:00:26]}  Qd5 {[%clk 0:00:35]} 25. Ba3 {[%clk 0:00:26]}  a5 {[%clk 0:00:24]} 26. Ng5 {[%clk 0:00:24]}  h6 {[%clk 0:00:24]} 27. Ne4 {[%clk 0:00:24]}  f5 {[%clk 0:00:23]} 28. Nd2 {[%clk 0:00:20]}  Qd4 {[%clk 0:00:22]} 29. Qg3 {[%clk 0:00:18]}  Qf6 {[%clk 0:00:21]} 30. Nf3 {[%clk 0:00:15]}  Rf7 {[%clk 0:00:21]} 31. Bc1 {[%clk 0:00:11]}  e5 {[%clk 0:00:20]} 32. Bb2 {[%clk 0:00:06]}  Qd6 {[%clk 0:00:19]} 33. d4 {[%clk 0:00:05]}  f4 {[%clk 0:00:18]} 34. dxe5 {[%clk 0:00:04]}  Qe6 {[%clk 0:00:17]} 35. Qf2 {[%clk 0:00:04]}  g5 {[%clk 0:00:17]} 36. Nd4 {[%clk 0:00:04]}  Nxd4 {[%clk 0:00:18]} 37. Qxd4 {[%clk 0:00:05]}  Kh7 {[%clk 0:00:18]} 38. Qd3+ {[%clk 0:00:05]}  Qg6 {[%clk 0:00:18]} 39. Qxg6+ {[%clk 0:00:04]}  Kxg6 {[%clk 0:00:19]} 40. e6 {[%clk 0:00:05]}  Rfe7 {[%clk 0:00:19]} 41. Bxg7 {[%clk 0:00:05]}  Kxg7 {[%clk 0:00:20]} 42. Re5 {[%clk 0:00:06]}  Rxe6 {[%clk 0:00:21]} 43. Rxb5 {[%clk 0:00:06]}  Re2 {[%clk 0:00:21]} 44. Rxa5 {[%clk 0:00:05]}  Rxc2 {[%clk 0:00:21]} 45. Ra7+ {[%clk 0:00:05]}  Kg6 {[%clk 0:00:20]} 46. Ra6+ {[%clk 0:00:06]}  Kh5 {[%clk 0:00:20]} 47. Rg1 {[%clk 0:00:01]}  Ree2 {[%clk 0:00:19]} 48. g4+ {[%clk 0:00:02]}  fxg3 {[%clk 0:00:20]} 49. Rxg3 {[%clk 0:00:02]}  Re1+ {[%clk 0:00:19]} 50. Rg1 {[%clk 0:00:02]}  Ree2 {[%clk 0:00:19]} 51. Rg3 {[%clk 0:00:02]}  Kh4 {[%clk 0:00:18]} 52. Ra3 {[%clk 0:00:03]}  Kxg3 {[%clk 0:00:17]} 0-1


[Site "https://www.chess.com"]

[Event "Titled Tuesday Blitz November 9 2021"]
[White "Jary, Sergey"]
[Black "Harshavardhan G B"]
[WhiteFideId "14110350"]
[BlackFideId "25059009"]
[WhiteElo "2260"]
[BlackElo "1825"]
[Result "0-1"]
[Round "11"]
[TimeControl "180+1"]
[Date "2021.11.09"]
[WhiteClock "0:00:18"]
[BlackClock "0:01:09"]

1. e4 {[%clk 0:02:59]}  e5 {[%clk 0:02:56]} 2. Nf3 {[%clk 0:02:57]}  Nc6 {[%clk 0:02:56]} 3. d4 {[%clk 0:02:58]}  exd4 {[%clk 0:02:53]} 4. Bc4 {[%clk 0:02:58]}  Bc5 {[%clk 0:02:50]} 5. c3 {[%clk 0:02:58]}  Nf6 {[%clk 0:02:47]} 6. cxd4 {[%clk 0:02:54]}  Bb4+ {[%clk 0:02:46]} 7. Bd2 {[%clk 0:02:54]}  Bxd2+ {[%clk 0:02:46]} 8. Nbxd2 {[%clk 0:02:55]}  d5 {[%clk 0:02:46]} 9. exd5 {[%clk 0:02:55]}  Nxd5 {[%clk 0:02:47]} 10. O-O {[%clk 0:02:56]}  O-O {[%clk 0:02:45]} 11. Qb3 {[%clk 0:02:56]}  Nb6 {[%clk 0:02:45]} 12. Rac1 {[%clk 0:02:51]}  Nxd4 {[%clk 0:02:39]} 13. Nxd4 {[%clk 0:02:50]}  Qxd4 {[%clk 0:02:40]} 14. Nf3 {[%clk 0:02:51]}  Qf6 {[%clk 0:02:38]} 15. a4 {[%clk 0:02:44]}  c6 {[%clk 0:02:26]} 16. Bd3 {[%clk 0:02:33]}  Be6 {[%clk 0:02:11]} 17. Qc2 {[%clk 0:02:32]}  h6 {[%clk 0:02:04]} 18. a5 {[%clk 0:02:32]}  Nd5 {[%clk 0:02:00]} 19. a6 {[%clk 0:02:32]}  bxa6 {[%clk 0:01:54]} 20. Qxc6 {[%clk 0:02:28]}  Nb4 {[%clk 0:01:48]} 21. Qe4 {[%clk 0:02:27]}  Nxd3 {[%clk 0:01:46]} 22. Qxd3 {[%clk 0:02:27]}  Qxb2 {[%clk 0:01:47]} 23. Qxa6 {[%clk 0:02:25]}  Qb6 {[%clk 0:01:45]} 24. Qxb6 {[%clk 0:02:22]}  axb6 {[%clk 0:01:46]} 25. Rb1 {[%clk 0:02:22]}  Rab8 {[%clk 0:01:45]} 26. Rfc1 {[%clk 0:02:21]}  Rfc8 {[%clk 0:01:40]} 27. Rxc8+ {[%clk 0:02:17]}  Bxc8 {[%clk 0:01:39]} 28. Nd4 {[%clk 0:02:11]}  Bd7 {[%clk 0:01:38]} 29. f4 {[%clk 0:02:05]}  b5 {[%clk 0:01:36]} 30. Rb4 {[%clk 0:01:58]}  Kf8 {[%clk 0:01:33]} 31. Kf2 {[%clk 0:01:49]}  Ke7 {[%clk 0:01:33]} 32. Ke3 {[%clk 0:01:49]}  Kd6 {[%clk 0:01:32]} 33. Nb3 {[%clk 0:01:49]}  Be6 {[%clk 0:01:29]} 34. Rd4+ {[%clk 0:01:44]}  Kc7 {[%clk 0:01:27]} 35. Nc5 {[%clk 0:01:44]}  Kc6 {[%clk 0:01:25]} 36. Na6 {[%clk 0:01:33]}  Re8 {[%clk 0:01:24]} 37. Nb4+ {[%clk 0:01:30]}  Kc7 {[%clk 0:01:21]} 38. Kd2 {[%clk 0:01:27]}  Bc4 {[%clk 0:01:20]} 39. Nd5+ {[%clk 0:01:24]}  Bxd5 {[%clk 0:01:18]} 40. Rxd5 {[%clk 0:01:24]}  Rd8 {[%clk 0:01:19]} 41. Rxd8 {[%clk 0:01:21]}  Kxd8 {[%clk 0:01:20]} 42. Kc3 {[%clk 0:01:20]}  Kc7 {[%clk 0:01:21]} 43. Kb4 {[%clk 0:01:20]}  Kb6 {[%clk 0:01:21]} 44. f5 {[%clk 0:01:19]}  g5 {[%clk 0:01:13]} 45. f6 {[%clk 0:00:39]}  g4 {[%clk 0:01:10]} 46. h4 {[%clk 0:00:32]}  g3 {[%clk 0:01:04]} 47. h5 {[%clk 0:00:29]}  Kc6 {[%clk 0:01:04]} 48. Kc3 {[%clk 0:00:30]}  Kc5 {[%clk 0:01:03]} 49. Kb3 {[%clk 0:00:26]}  b4 {[%clk 0:01:03]} 50. Kb2 {[%clk 0:00:26]}  Kc4 {[%clk 0:01:04]} 51. Kc2 {[%clk 0:00:26]}  b3+ {[%clk 0:01:05]} 52. Kb2 {[%clk 0:00:26]}  Kb4 {[%clk 0:01:05]} 53. Kb1 {[%clk 0:00:26]}  Kc3 {[%clk 0:01:06]} 54. Kc1 {[%clk 0:00:27]}  Kd3 {[%clk 0:01:06]} 55. Kb2 {[%clk 0:00:27]}  Kc4 {[%clk 0:01:06]} 56. Kb1 {[%clk 0:00:26]}  Kb4 {[%clk 0:01:07]} 57. Kb2 {[%clk 0:00:26]}  Kc5 {[%clk 0:01:08]} 58. Kxb3 {[%clk 0:00:25]}  Kd4 {[%clk 0:01:08]} 59. Kb4 {[%clk 0:00:25]}  Ke3 {[%clk 0:01:09]} 60. Kc5 {[%clk 0:00:25]}  Kf2 {[%clk 0:01:10]} 61. Kd6 {[%clk 0:00:26]}  Kxg2 {[%clk 0:01:11]} 62. Ke7 {[%clk 0:00:26]}  Kh3 {[%clk 0:01:10]} 63. Kxf7 {[%clk 0:00:26]}  g2 {[%clk 0:01:11]} 64. Kg6 {[%clk 0:00:22]}  g1=Q+ {[%clk 0:01:10]} 65. Kxh6 {[%clk 0:00:22]}  Qg8 {[%clk 0:01:10]} 66. f7 {[%clk 0:00:21]}  Qxf7 {[%clk 0:01:09]} 67. Kg5 {[%clk 0:00:21]}  Qh7 {[%clk 0:01:09]} 68. h6 {[%clk 0:00:18]}  Kg3 {[%clk 0:01:09]} 69. Kh5 {[%clk 0:00:18]}  Kf4 {[%clk 0:01:09]} 0-1


[Site "https://www.chess.com"]

[Event "Titled Tuesday Blitz November 9 2021"]
[White "Korchmar, Vasiliy"]
[Black "Djordjevic, Vuk"]
[WhiteFideId "24131750"]
[BlackFideId "902098"]
[WhiteElo "2370"]
[BlackElo "2463"]
[Result "0-1"]
[Round "11"]
[TimeControl "180+1"]
[Date "2021.11.09"]
[WhiteClock "0:00:02"]
[BlackClock "0:00:45"]

1. e4 {[%clk 0:03:00]}  e6 {[%clk 0:02:57]} 2. d4 {[%clk 0:03:00]}  d5 {[%clk 0:02:57]} 3. exd5 {[%clk 0:03:01]}  exd5 {[%clk 0:02:57]} 4. Nf3 {[%clk 0:03:02]}  Bd6 {[%clk 0:02:58]} 5. c4 {[%clk 0:03:00]}  Bg4 {[%clk 0:02:55]} 6. c5 {[%clk 0:02:40]}  Be7 {[%clk 0:02:55]} 7. h3 {[%clk 0:02:40]}  Bh5 {[%clk 0:02:53]} 8. Qb3 {[%clk 0:02:35]}  b6 {[%clk 0:02:45]} 9. Ne5 {[%clk 0:02:18]}  c6 {[%clk 0:02:34]} 10. Nc3 {[%clk 0:01:27]}  Nf6 {[%clk 0:02:29]} 11. g4 {[%clk 0:01:26]}  Bg6 {[%clk 0:02:27]} 12. h4 {[%clk 0:01:26]}  bxc5 {[%clk 0:02:02]} 13. dxc5 {[%clk 0:00:43]}  Bxc5 {[%clk 0:01:52]} 14. Qb7 {[%clk 0:00:43]}  Nfd7 {[%clk 0:01:27]} 15. Nxd7 {[%clk 0:00:09]}  Qxd7 {[%clk 0:01:27]} 16. Qxa8 {[%clk 0:00:09]}  O-O {[%clk 0:01:28]} 17. h5 {[%clk 0:00:08]}  Re8+ {[%clk 0:01:21]} 18. Be2 {[%clk 0:00:08]}  Bd3 {[%clk 0:01:21]} 19. Kf1 {[%clk 0:00:06]}  Bxe2+ {[%clk 0:01:14]} 20. Nxe2 {[%clk 0:00:07]}  Qxg4 {[%clk 0:01:14]} 21. Ng3 {[%clk 0:00:01]}  Qd7 {[%clk 0:00:55]} 22. Be3 {[%clk 0:00:01]}  Bxe3 {[%clk 0:00:49]} 23. fxe3 {[%clk 0:00:02]}  Na6 {[%clk 0:00:47]} 24. Qxe8+ {[%clk 0:00:01]}  Qxe8 {[%clk 0:00:48]} 25. Kf2 {[%clk 0:00:01]}  Qe5 {[%clk 0:00:49]} 26. h6 {[%clk 0:00:02]}  Nc5 {[%clk 0:00:47]} 27. hxg7 {[%clk 0:00:01]}  Qxb2+ {[%clk 0:00:47]} 28. Kf3 {[%clk 0:00:01]}  Qf6+ {[%clk 0:00:47]} 29. Kg2 {[%clk 0:00:01]}  Qg5 {[%clk 0:00:46]} 30. Rab1 {[%clk 0:00:01]}  Ne4 {[%clk 0:00:46]} 31. Rb8+ {[%clk 0:00:01]}  Kxg7 {[%clk 0:00:46]} 32. Rh3 {[%clk 0:00:01]}  h5 {[%clk 0:00:45]} 33. Kh2 {[%clk 0:00:02]}  Qe5 {[%clk 0:00:45]} 0-1


[Site "https://www.chess.com"]